bitfinex/quotes_ETHUSD_20240703
["timestamp","ask_amount","ask_price","bid_price","bid_amount"]
[1720049055424,1.72464248,3304.5,3304.4,6.12016091]
[1720049055586,4.59636693,3304.5,3304.4,6.12016091]
[1720049055908,6.32101148,3304.5,3304.4,6.12016091]
[1720049058586,1.72464248,3304.5,3304.4,6.12016091]
[1720049058794,4.59639963,3304.5,3304.4,6.12016091]
[1720049059116,6.32104211,3304.5,3304.4,6.12016091]
[1720049062012,5.2728945,3304.5,3304.4,6.12016091]
[1720049062314,6.32102871,3304.5,3304.4,6.12016091]
[1720049063013,7.89643603,3304.5,3304.4,6.12016091]
[1720049063229,5.66883499,3304.5,3304.4,9.198177]
[1720049063512,5.66883499,3304.5,3304.4,12.224437]
[1720049063513,1.57540732,3304.5,3304.4,12.224437]
[1720049063915,3.16608601,3304.5,3304.4,12.224437]
[1720049064521,1.57540732,3304.5,3304.4,12.224437]
[1720049064808,3.16608601,3304.5,3304.4,12.224437]
[1720049065392,1.57540732,3304.5,3304.4,12.224437]
[1720049068623,2.84667463,3304.5,3304.4,12.224437]
[1720049069282,1.57540732,3304.5,3304.4,12.224437]
[1720049069477,2.84656032,3304.5,3304.4,12.224437]
[1720049072115,0.95315547,3304.5,3304.4,9.870837]
[1720049072303,0.95315547,3304.5,3304.4,12.191937]
[1720049074529,8.98736297,3305.5,3305.3,3.02539]
[1720049074842,6.764,3305.5,3305.4,0.06753944]
[1720049075138,13.13333096,3305.5,3305.4,0.06753944]
[1720049075340,13.13333096,3305.5,3305.3,3.02539]
[1720049075504,4.14598422,3305.4,3305.3,3.02539]
[1720049077744,4.14598422,3305.4,3305.3,3.09292944]
[1720049078057,4.14590945,3305.4,3305.3,3.09292944]
[1720049078546,4.14590952,3305.4,3305.3,3.09292944]
[1720049080353,6.05071155,3305.4,3305.3,3.09292944]
[1720049080538,4.14590952,3305.4,3305.3,3.09292944]
[1720049081273,4.1458681,3305.4,3305.3,3.09292944]
[1720049081458,1.77772088,3305.4,3305.3,3.09292944]
[1720049081626,4.27284482,3305.4,3305.3,3.09292944]
[1720049081817,4.14586794,3305.4,3305.3,3.09292944]
[1720049082328,6.05049728,3305.4,3305.3,3.09292944]
[1720049082541,6.05049728,3305.4,3305.3,6.11836944]
[1720049083147,5.0026446,3305.4,3305.3,6.11836944]
[1720049084461,3.09796581,3305.4,3305.3,6.11836944]
[1720049084663,1.77772088,3305.4,3305.3,6.11836944]
[1720049085172,3.34472284,3305.4,3305.3,6.11836944]
[1720049086069,1.56700196,3305.4,3305.3,6.11836944]
[1720049086234,5.83948552,3305.4,3305.3,6.11836944]
[1720049086433,7.6172064,3305.4,3305.3,3.09292944]
[1720049086635,9.00517208,3305.4,3305.3,0.06753944]
[1720049087174,9.00517208,3305.4,3305.3,0.06750967]
[1720049087333,9.00517208,3305.4,3305.2,3.02545]
[1720049087677,3.34472284,3305.3,3305.2,3.02545]
[1720049087847,5.71300924,3305.3,3305.2,3.02545]
[1720049090879,3.34472284,3305.3,3305.2,3.02545]
[1720049091177,5.71302625,3305.3,3305.2,3.02545]
[1720049091375,3.34472284,3305.3,3305.2,3.02545]
[1720049091669,5.71301461,3305.3,3305.2,3.02545]
[1720049093980,3.34472284,3305.3,3305.2,3.02545]
[1720049094150,5.71303154,3305.3,3305.2,3.02545]
[1720049094477,5.71302501,3305.3,3305.2,3.02545]
[1720049095770,5.71302501,3305.3,3305.2,3.09300804]
[1720049097236,3.34472284,3305.3,3305.2,3.09300804]
[1720049097436,5.71303745,3305.3,3305.2,3.09300804]
[1720049100501,3.34472284,3305.3,3305.2,3.09300804]
[1720049100700,5.71303029,3305.3,3305.2,3.09300804]
[1720049102300,6.73680774,3305.3,3305.2,0.06755804]
[1720049102678,6.73680774,3305.3,3304.8,3.02588]
[1720049102679,10.97542147,3305.3,3304.8,3.02588]
[1720049103006,1.04804006,3305.2,3304.8,3.02588]
[1720049103205,4.83041562,3305.1,3304.9,0.06759157]
[1720049103503,5.71672523,3305.0,3304.9,0.06759157]
[1720049104382,5.71672523,3305.0,3304.7,3.0259]
[1720049104574,1.90655171,3304.8,3304.7,3.0259]
[1720049104780,7.62327694,3304.8,3304.7,3.0259]
[1720049105167,5.71672523,3304.8,3304.5,3.0261]
[1720049105379,7.62330563,3304.7,3304.5,4.1501]
[1720049105698,4.66872545,3304.6,3304.5,4.1501]
[1720049106080,4.66872554,3304.6,3304.5,4.1501]
[1720049106303,3.34817173,3304.6,3304.5,4.1501]
[1720049106611,2.87917044,3304.6,3304.5,4.1501]
[1720049106786,4.66872548,3304.6,3304.5,4.1501]
[1720049107309,6.57588915,3304.6,3304.5,4.1501]
[1720049107799,6.57588915,3304.6,3304.5,4.2177586]
[1720049108000,4.66872548,3304.6,3304.5,4.2177586]
[1720049108305,6.57588915,3304.6,3304.5,4.2177586]
[1720049109234,3.34817173,3304.6,3304.5,4.2177586]
[1720049109445,4.78680496,3304.6,3304.5,4.2177586]
[1720049110101,6.57636,3304.6,3304.5,4.2177586]
[1720049110330,4.66871419,3304.6,3304.5,4.2177586]
[1720049110537,6.57636,3304.6,3304.5,4.2177586]
[1720049111038,4.66871419,3304.6,3304.5,4.2177586]
[1720049112436,4.6687043,3304.6,3304.5,4.2177586]
[1720049115738,4.66871325,3304.6,3304.5,4.2177586]
[1720049115949,4.66871325,3304.6,3304.5,3.0937586]
[1720049116241,4.66871351,3304.6,3304.5,4.2177586]
[1720049118426,3.34817173,3304.6,3304.5,4.2177586]
[1720049118604,1.55861669,3304.6,3304.5,4.2177586]
[1720049120343,1.55861669,3304.6,3304.5,3.0937586]
[1720049120642,2.87915927,3304.6,3304.5,4.2177586]
[1720049121047,4.66871431,3304.6,3304.5,4.2177586]
[1720049122103,4.66872135,3304.6,3304.5,4.2177586]
[1720049125118,5.71677594,3304.6,3304.5,4.2177586]
[1720049125354,3.34817173,3304.6,3304.5,4.2177586]
[1720049125550,5.71677696,3304.6,3304.5,4.2177586]
[1720049126960,5.71677696,3304.6,3304.5,7.2439286]
[1720049127121,4.39622714,3304.6,3304.5,7.2439286]
[1720049127451,3.35125137,3304.6,3304.5,7.2439286]
[1720049127955,1.55861669,3304.6,3304.5,7.2439286]
[1720049128154,1.55861669,3304.6,3304.5,8.21737146]
[1720049130746,1.55861669,3304.6,3304.5,6.1199286]
[1720049131064,5.83398287,3304.6,3304.5,7.2439286]
[1720049131367,7.62665101,3304.6,3304.5,7.2439286]
[1720049131749,7.62741779,3304.6,3304.5,7.2439286]
[1720049134361,5.71989901,3304.6,3304.5,7.2439286]
[1720049134564,4.3993442,3304.6,3304.5,7.2439286]
[1720049134769,5.71982217,3304.6,3304.5,7.2439286]
[1720049134942,5.71982965,3304.6,3304.5,7.2439286]
[1720049135862,7.62754038,3304.6,3304.5,7.2439286]
[1720049136071,2.60664537,3304.6,3304.5,10.46252146]
[1720049136271,1.55861669,3304.6,3304.5,10.46252146]
[1720049140879,2.87909034,3304.6,3304.5,10.46252146]
[1720049141335,1.55861669,3304.6,3304.5,10.46252146]
[1720049141549,2.87908232,3304.6,3304.5,10.46252146]
[1720049141978,2.87908231,3304.6,3304.5,10.46252146]
[1720049143588,4.67591142,3304.6,3304.5,10.46252146]
[1720049143963,2.87908231,3304.6,3304.5,10.46252146]
[1720049144515,4.66387325,3304.6,3304.5,10.46252146]
[1720049145778,6.57248524,3304.6,3304.5,10.46252146]
[1720049146689,6.57248524,3304.6,3304.5,3.0937586]
[1720049147002,6.57248524,3304.6,3304.5,4.2177586]
[1720049147715,3.34340167,3304.6,3304.5,4.2177586]
[1720049147874,3.92719181,3304.6,3304.5,3.0937586]
[1720049148197,5.71197679,3304.6,3304.5,4.2177586]
[1720049151082,5.71200267,3304.6,3304.5,4.2177586]
[1720049151404,5.71200267,3304.6,3304.5,3.0937586]
[1720049151573,5.71200267,3304.6,3304.5,1.1916586]
[1720049154107,3.34340167,3304.6,3304.5,1.1916586]
[1720049154315,5.71210283,3304.6,3304.5,1.1916586]
[1720049154672,5.71210248,3304.6,3304.5,1.1916586]
[1720049157287,5.71210211,3304.6,3304.5,1.1916586]
[1720049157700,5.71210189,3304.6,3304.5,1.1916586]
[1720049160511,4.39151028,3304.6,3304.5,1.1916586]
[1720049160675,5.71212713,3304.6,3304.5,1.1916586]
[1720049162877,4.39150367,3304.6,3304.5,1.1916586]
[1720049163179,5.71211219,3304.6,3304.5,1.1916586]
[1720049163401,5.71212051,3304.6,3304.5,1.1916586]
[1720049166212,4.66402342,3304.6,3304.5,1.1916586]
[1720049166404,5.71213592,3304.6,3304.5,1.1916586]
[1720049166600,4.66401829,3304.6,3304.5,1.1916586]
[1720049166793,5.71212672,3304.6,3304.5,1.1916586]
[1720049169323,5.71213739,3304.6,3304.5,1.1916586]
[1720049172407,3.34340167,3304.6,3304.5,1.1916586]
[1720049172628,5.7121722,3304.6,3304.5,1.1916586]
[1720049175600,4.39152625,3304.6,3304.5,1.1916586]
[1720049175812,5.71216323,3304.6,3304.5,1.1916586]
[1720049178897,5.71216191,3304.6,3304.5,1.1916586]
[1720049179333,5.71216804,3304.6,3304.5,1.1916586]
[1720049180633,9.03473581,3304.6,3304.5,0.0676586]
[1720049180828,9.03473581,3304.6,3304.2,1.124]
[1720049181033,1.90814577,3304.3,3304.2,1.124]
[1720049181229,3.92738306,3304.3,3304.2,1.124]
[1720049181445,7.62022631,3304.3,3304.2,1.124]
[1720049181623,5.71216804,3304.3,3304.2,1.124]
[1720049182017,5.71226563,3304.3,3304.2,1.124]
[1720049182211,5.71227268,3304.3,3304.2,1.124]
[1720049182944,5.71227268,3304.3,3304.2,1.18121622]
[1720049185271,3.34340167,3304.3,3304.2,1.18121622]
[1720049185480,5.71227184,3304.3,3304.2,1.18121622]
[1720049188460,4.39157476,3304.3,3304.2,1.18121622]
[1720049188618,5.71227286,3304.3,3304.2,1.18121622]
[1720049191852,5.71227044,3304.3,3304.2,1.18121622]
[1720049192252,5.71226904,3304.3,3304.2,1.18121622]
[1720049194757,3.34340167,3304.3,3304.2,1.18121622]
[1720049194961,5.71226832,3304.3,3304.2,1.18121622]
[1720049195259,4.6640971,3304.3,3304.2,1.18121622]
[1720049195419,5.71226811,3304.3,3304.2,1.18121622]
[1720049198118,4.39157345,3304.3,3304.2,1.18121622]
[1720049198439,5.7122699,3304.3,3304.2,1.18121622]
[1720049201124,5.7122699,3304.3,3304.2,0.05721622]
[1720049201333,5.7122696,3304.3,3304.2,1.124]
[1720049201537,5.7122696,3304.3,3304.2,1.17746137]
[1720049204574,4.39157315,3304.3,3304.2,1.17746137]
[1720049204876,5.71226976,3304.3,3304.2,1.17746137]
[1720049205088,3.34340167,3304.3,3304.2,1.17746137]
[1720049205229,5.71227069,3304.3,3304.2,1.17746137]
[1720049207889,5.71227064,3304.3,3304.2,1.17746137]
[1720049208088,5.71227061,3304.3,3304.2,1.17746137]
[1720049210975,4.39157355,3304.3,3304.2,1.17746137]
[1720049211293,5.71227012,3304.3,3304.2,1.17746137]
[1720049212268,5.71227012,3304.3,3304.2,0.05346137]
[1720049212269,8.84240372,3304.3,3304.2,0.05346137]
[1720049212679,8.84240372,3304.3,3304.2,0.04926182]
[1720049212992,8.84240372,3304.3,3303.9,1.124]
[1720049213199,7.93922326,3304.2,3303.9,1.124]
[1720049213357,5.71227012,3304.1,3304.0,0.04557456]
[1720049213558,5.71227012,3304.1,3303.9,1.124]
[1720049213758,5.71227012,3304.0,3303.9,1.124]
[1720049214171,3.34340167,3304.0,3303.9,1.124]
[1720049214402,5.71244301,3304.0,3303.9,1.124]
[1720049217302,3.34340167,3304.0,3303.9,1.124]
[1720049217506,5.71244611,3304.0,3303.9,1.124]
[1720049217910,4.66419636,3304.0,3303.9,1.124]
[1720049218062,5.71244611,3304.0,3303.9,1.124]
[1720049218465,6.50633454,3304.0,3303.6,0.0016]
[1720049218718,1.90824407,3303.7,3303.6,0.0016]
[1720049218872,3.92766342,3303.7,3303.6,0.0016]
[1720049219199,5.7124484,3303.7,3303.6,1.17117456]
[1720049219401,5.7124484,3303.7,3303.6,1.1256]
[1720049219618,5.7124484,3303.7,3303.6,1.17117456]
[1720049220436,3.34340167,3303.7,3303.6,1.17117456]
[1720049220620,5.71272963,3303.7,3303.6,1.17117456]
[1720049220826,4.39176977,3303.7,3303.6,1.17117456]
[1720049220994,5.71271358,3303.7,3303.6,1.17117456]
[1720049222431,6.57123949,3303.7,3303.6,1.17117456]
[1720049222838,3.34340167,3303.7,3303.6,1.17117456]
[1720049223041,4.78646964,3303.7,3303.6,1.17117456]
[1720049223559,6.57125462,3303.7,3303.6,0.04717456]
[1720049223700,6.36986889,3303.7,3303.6,0.04717456]
[1720049224438,6.36986889,3303.7,3303.6,0.0016]
[1720049225927,4.00052713,3303.7,3303.6,0.0016]
[1720049226129,6.37000173,3303.7,3303.6,0.0016]
[1720049226714,6.37000737,3303.7,3303.6,0.0016]
[1720049227723,8.71210737,3303.7,3303.6,0.0016]
[1720049227926,8.71210737,3303.7,3303.6,0.04747579]
[1720049229206,8.71212324,3303.7,3303.6,0.04747579]
[1720049229404,10.6170337,3303.7,3303.6,0.04747579]
[1720049229638,7.39106709,3303.7,3303.6,0.04747579]
[1720049229843,10.61697959,3303.7,3303.6,0.04747579]
[1720049230548,8.71210144,3303.7,3303.6,0.04747579]
[1720049232220,6.34262713,3303.7,3303.6,0.04747579]
[1720049232420,8.7121321,3303.7,3303.6,0.04747579]
[1720049232621,8.7121855,3303.7,3303.6,0.04747579]
[1720049233559,8.7121855,3303.7,3303.6,0.0016]
[1720049234521,8.7121855,3303.7,3303.6,0.04779932]
[1720049235468,7.66374353,3303.7,3303.6,0.04779932]
[1720049235668,8.71224861,3303.7,3303.6,0.04779932]
[1720049238593,7.39113221,3303.7,3303.6,0.04779932]
[1720049238745,8.71225209,3303.7,3303.6,0.04779932]
[1720049241062,11.73915209,3303.7,3303.6,0.04779932]
[1720049241671,9.36952713,3303.7,3303.6,0.04779932]
[1720049241973,6.37018466,3303.7,3303.6,0.04779932]
[1720049242179,4.00052713,3303.7,3303.6,0.04779932]
[1720049242474,8.27290882,3303.7,3303.6,0.04779932]
[1720049244962,8.27292758,3303.7,3303.6,0.04779932]
[1720049245177,8.27293934,3303.7,3303.6,0.04779932]
[1720049246587,6.37012703,3303.7,3303.6,0.04779932]
[1720049248183,6.37012914,3303.7,3303.6,0.04779932]
[1720049248483,5.32163268,3303.7,3303.6,0.04779932]
[1720049248655,6.37013084,3303.7,3303.6,0.04779932]
[1720049251506,6.37012538,3303.7,3303.6,0.04779932]
[1720049254598,4.00052713,3303.7,3303.6,0.04779932]
[1720049254765,6.3701214,3303.7,3303.6,0.04779932]
[1720049255105,5.04902017,3303.7,3303.6,0.04779932]
[1720049255286,6.37010194,3303.7,3303.6,0.04779932]
[1720049257756,4.00052713,3303.7,3303.6,0.04779932]
[1720049257955,6.37011383,3303.7,3303.6,0.04779932]
[1720049258355,8.59315627,3303.7,3303.6,0.04779932]
[1720049261024,4.00052713,3303.7,3303.6,0.04779932]
[1720049261298,6.15229578,3303.7,3303.6,0.04779932]
[1720049261458,7.93708076,3303.7,3303.6,0.04779932]
[1720049261866,5.71296974,3303.7,3303.6,0.04779932]
[1720049262200,7.93708076,3303.7,3303.6,0.04779932]
[1720049262372,5.71296974,3303.7,3303.6,0.04779932]
[1720049262695,7.93794703,3303.7,3303.6,0.04779932]
[1720049263796,7.93791487,3303.7,3303.6,0.04779932]
[1720049264294,3.34340167,3303.7,3303.6,0.04779932]
[1720049264494,5.90968289,3303.7,3303.6,0.04779932]
[1720049264794,7.69446787,3303.7,3303.6,0.04779932]
[1720049266996,12.99797709,3303.7,3303.6,0.04779932]
[1720049267581,12.99819064,3303.7,3303.6,0.04779932]
[1720049268069,11.9496895,3303.7,3303.6,0.04779932]
[1720049268403,12.99819645,3303.7,3303.6,0.04779932]
[1720049269296,15.62842905,3303.7,3303.6,0.04779932]
[1720049270589,9.69541784,3303.7,3303.6,0.04779932]
[1720049270774,15.62900372,3303.7,3303.6,0.04779932]
[1720049271090,15.62902977,3303.7,3303.6,0.04779932]
[1720049273911,13.64771697,3303.7,3303.6,0.04779932]
[1720049274228,15.62939516,3303.7,3303.6,0.04779932]
[1720049274891,13.31749516,3303.7,3303.6,0.04779932]
[1720049275401,13.31747647,3303.7,3303.6,0.04779932]
[1720049276578,12.28504365,3303.7,3303.6,0.04779932]
[1720049277111,5.30257807,3303.7,3303.6,0.04779932]
[1720049277424,10.32592642,3303.7,3303.6,0.04779932]
[1720049277628,12.28510282,3303.7,3303.6,0.04779932]
[1720049279875,9.653866,3303.7,3303.6,0.04779932]
[1720049280315,5.30257807,3303.7,3303.6,0.04779932]
[1720049280516,7.69456912,3303.7,3303.6,0.04779932]
[1720049280737,9.65374552,3303.7,3303.6,0.04779932]
[1720049281017,9.65367943,3303.7,3303.6,0.04779932]
[1720049282718,8.33262075,3303.7,3303.6,0.04779932]
[1720049282921,9.65367742,3303.7,3303.6,0.04779932]
[1720049283809,9.6536818,3303.7,3303.6,0.04779932]
[1720049285919,5.30257807,3303.7,3303.6,0.04779932]
[1720049286086,9.65368461,3303.7,3303.6,0.04779932]
[1720049287621,5.71291993,3303.7,3303.6,6.4693]
[1720049287922,5.71291993,3303.7,3303.6,10.14928383]
[1720049288095,5.71291993,3303.7,3303.6,9.06988687]
[1720049288299,5.71291993,3303.7,3303.6,10.19388687]
[1720049289088,5.71261144,3303.7,3303.6,10.19388687]
[1720049289290,6.76093466,3303.7,3303.6,10.19388687]
[1720049290094,8.66920483,3303.7,3303.6,10.19388687]
[1720049290513,6.76093466,3303.7,3303.6,10.19388687]
[1720049290827,8.66920817,3303.7,3303.6,10.19388687]
[1720049291126,7.11059148,3303.7,3303.6,10.19388687]
[1720049292321,7.11030118,3303.7,3303.6,10.19388687]
[1720049292731,3.88143076,3303.7,3303.6,10.19388687]
[1720049293020,7.11007742,3303.7,3303.6,10.19388687]
[1720049294127,5.2023186,3303.7,3303.6,10.19388687]
[1720049294328,7.11007742,3303.7,3303.6,10.19388687]
[1720049294619,5.2023186,3303.7,3303.6,10.19388687]
[1720049295440,5.20230911,3303.7,3303.6,10.19388687]
[1720049295801,5.20234434,3303.7,3303.6,10.19388687]
[1720049296196,6.76950522,3303.7,3303.6,10.19388687]
[1720049296735,4.67285944,3303.7,3303.6,10.19388687]
[1720049298145,2.88807446,3303.7,3303.6,10.19388687]
[1720049298638,4.68560933,3303.7,3303.6,10.19388687]
[1720049298932,2.88802952,3303.7,3303.6,10.19388687]
[1720049299132,1.56716088,3303.7,3303.6,10.19388687]
[1720049300206,4.68545586,3303.7,3303.6,9.54090304]
[1720049300504,1.56716088,3303.7,3303.6,9.54090304]
[1720049315654,2.61548054,3303.7,3303.6,9.54090304]
[1720049315860,1.56716088,3303.7,3303.6,9.54090304]
[1720049316270,2.61547881,3303.7,3303.6,9.54090304]
[1720049316772,2.61546524,3303.7,3303.6,9.54090304]
[1720049317269,2.61546524,3303.7,3303.6,9.51170304]
[1720049317963,1.56716088,3303.7,3303.6,9.51170304]
[1720049318162,2.61547033,3303.7,3303.6,10.46287334]
[1720049318477,2.61543205,3303.7,3303.6,10.46287334]
[1720049318685,1.56716088,3303.7,3303.6,10.46287334]
[1720049320500,2.61543754,3303.7,3303.6,9.33887334]
[1720049320786,2.61543754,3303.7,3303.6,10.46287334]
[1720049321142,2.61544996,3303.7,3303.6,10.46287334]
[1720049323362,3.93629992,3303.7,3303.6,10.46287334]
[1720049323762,2.61544996,3303.7,3303.6,10.46287334]
[1720049324178,1.56716088,3303.7,3303.6,10.46287334]
[1720049324363,3.93629882,3303.7,3303.6,10.46287334]
[1720049325295,5.73527962,3303.7,3303.6,10.46287334]
[1720049327404,3.36614168,3303.7,3303.6,10.46287334]
[1720049327557,7.05613425,3303.7,3303.6,10.46287334]
[1720049327891,7.64293014,3303.7,3303.6,10.46287334]
[1720049330657,5.27426996,3303.7,3303.6,10.46287334]
[1720049330886,7.64344351,3303.7,3303.6,10.46287334]
[1720049331209,5.73531523,3303.7,3303.6,10.46287334]
[1720049331415,7.64376567,3303.7,3303.6,10.46287334]
[1720049333232,5.73531523,3303.7,3303.6,10.46287334]
[1720049333758,3.36614168,3303.7,3303.6,10.46287334]
[1720049334118,5.73527988,3303.7,3303.6,10.46287334]
[1720049334254,5.73528009,3303.7,3303.6,10.46287334]
[1720049335390,5.73528009,3303.7,3303.6,8.17537334]
[1720049336509,5.73528009,3303.7,3303.6,6.08814165]
[1720049336660,5.73528009,3303.7,3303.6,7.21214165]
[1720049337081,5.73535815,3303.7,3303.6,7.21214165]
[1720049340193,3.36614168,3303.7,3303.6,7.21214165]
[1720049340409,5.73537824,3303.7,3303.6,7.21214165]
[1720049342567,3.36614168,3303.7,3303.6,7.21214165]
[1720049342768,5.73536348,3303.7,3303.6,7.21214165]
[1720049343169,4.6869856,3303.7,3303.6,7.21214165]
[1720049343368,5.73531688,3303.7,3303.6,8.16561582]
[1720049343581,7.64493093,3303.7,3303.6,8.16561582]
[1720049343788,6.59659965,3303.7,3303.6,8.16561582]
[1720049345834,4.68699594,3303.7,3303.6,8.16561582]
[1720049346114,4.79755146,3303.7,3303.6,8.16561582]
[1720049346284,7.64483947,3303.7,3303.6,8.16561582]
[1720049346484,5.73530316,3303.7,3303.6,8.16561582]
[1720049346795,6.59645465,3303.7,3303.6,8.16561582]
[1720049346996,5.73530563,3303.7,3303.6,7.04161582]
[1720049347196,5.73530563,3303.7,3303.6,7.21214165]
[1720049348911,3.36614168,3303.7,3303.6,7.21214165]
[1720049349116,4.68701725,3303.7,3303.6,7.21214165]
[1720049349326,5.73533119,3303.7,3303.6,7.21214165]
[1720049352197,4.41445562,3303.7,3303.6,7.21214165]
[1720049352475,5.73531908,3303.7,3303.6,7.21214165]
[1720049355545,5.7353503,3303.7,3303.6,7.21214165]
[1720049356046,5.73531465,3303.7,3303.6,7.21214165]
[1720049358646,5.73528589,3303.7,3303.6,7.21214165]
[1720049359445,6.59630419,3303.7,3303.6,8.16561582]
[1720049359676,1.56716088,3303.7,3303.6,8.16561582]
[1720049364462,3.15736701,3303.7,3303.6,8.16561582]
[1720049365053,3.1573587,3303.7,3303.6,8.16561582]
[1720049365560,1.56716088,3303.7,3303.6,8.16561582]
[1720049367061,3.15718812,3303.7,3303.6,8.16561582]
[1720049367760,1.56716088,3303.7,3303.6,8.16561582]
[1720049379505,1.56716088,3303.7,3303.6,7.21214165]
[1720049385884,1.56716088,3303.7,3303.6,10.23914165]
[1720049389734,4.71888053,3303.7,3303.6,10.23914165]
[1720049390820,4.71886103,3303.7,3303.6,10.23914165]
[1720049391037,2.88802026,3303.7,3303.6,10.23914165]
[1720049391351,1.56716088,3303.7,3303.6,10.23914165]
[1720049391509,2.88799735,3303.7,3303.6,10.23914165]
[1720049391913,2.88799735,3303.7,3303.6,11.50415582]
[1720049392111,3.15641258,3303.7,3303.6,11.50415582]
[1720049392309,3.15641258,3303.7,3303.6,13.89735582]
[1720049392513,1.56716088,3303.7,3303.6,13.89735582]
[1720049395355,1.56716088,3303.7,3303.6,12.77335582]
[1720049395521,1.56716088,3303.7,3303.6,13.89735582]
[1720049395522,3.15621993,3303.7,3303.6,13.89735582]
[1720049397042,1.56716088,3303.7,3303.6,13.89735582]
[1720049397206,3.15613868,3303.7,3303.6,13.89735582]
[1720049397406,3.15614182,3303.7,3303.6,13.89735582]
[1720049398451,3.15614182,3303.7,3303.6,11.50415582]
[1720049399241,3.15614182,3303.7,3303.6,7.21214165]
[1720049399452,1.56716088,3303.7,3303.6,7.21214165]
[1720049399601,4.6817598,3303.7,3303.6,7.21214165]
[1720049400148,6.58853692,3303.7,3303.6,7.1796]
[1720049400350,6.58858166,3303.7,3303.6,7.1796]
[1720049401931,4.68180454,3303.7,3303.6,7.1796]
[1720049402560,5.26766813,3303.7,3303.6,7.1796]
[1720049402723,6.58864878,3303.7,3303.6,7.1796]
[1720049403322,4.6817515,3303.7,3303.6,7.1796]
[1720049403519,1.56716088,3303.7,3303.6,13.92456]
[1720049403856,3.15593505,3303.7,3303.6,13.92456]
[1720049404229,1.56716088,3303.7,3303.6,9.77356]
[1720049404433,1.56716088,3303.7,3303.6,9.0556]
[1720049404650,4.79490474,3303.7,3303.6,10.1796]
[1720049404851,8.92633965,3303.7,3303.6,0.0016]
[1720049405019,11.18509799,3303.7,3303.6,0.0016]
[1720049405374,10.9363046,3303.7,3303.6,0.0016]
[1720049405723,12.8979336,3303.7,3303.6,0.0016]
[1720049405933,10.93663681,3303.7,3303.6,0.0016]
[1720049406142,11.84942603,3303.7,3303.6,0.0016]
[1720049406367,10.9366393,3303.7,3303.6,0.0016]
[1720049407224,8.96085768,3303.7,3303.6,0.0016]
[1720049407923,11.18239859,3303.7,3303.6,0.0016]
[1720049408123,8.96085768,3303.7,3303.6,0.0016]
[1720049408449,11.18192157,3303.7,3303.6,0.0016]
[1720049408663,7.63971025,3303.7,3303.6,0.0016]
[1720049408878,11.18184744,3303.7,3303.6,0.0016]
[1720049409176,8.96077958,3303.7,3303.6,0.0016]
[1720049409481,11.18181221,3303.7,3303.6,0.0016]
[1720049409681,8.96077958,3303.7,3303.6,0.0016]
[1720049411753,6.59122975,3303.7,3303.6,0.0016]
[1720049411955,8.96075496,3303.7,3303.6,0.0016]
[1720049415175,8.96074936,3303.7,3303.6,0.0016]
[1720049418184,7.63969037,3303.7,3303.6,0.0016]
[1720049418502,8.96075075,3303.7,3303.6,0.0016]
[1720049418793,8.96075476,3303.7,3303.6,0.0016]
[1720049421390,8.96080152,3303.7,3303.6,0.0016]
[1720049421782,8.96079244,3303.7,3303.6,0.0016]
[1720049424478,6.59122975,3303.7,3303.6,0.0016]
[1720049424681,8.96076439,3303.7,3303.6,0.0016]
[1720049427721,6.59122975,3303.7,3303.6,0.0016]
[1720049427894,8.96076379,3303.7,3303.6,0.0016]
[1720049430935,7.63969308,3303.7,3303.6,0.0016]
[1720049431083,8.96075688,3303.7,3303.6,0.0016]
[1720049431486,8.96088513,3303.7,3303.6,0.0016]
[1720049434195,8.96084834,3303.7,3303.6,0.0016]
[1720049435735,6.59122975,3303.7,3303.6,0.0016]
[1720049436429,9.61812975,3303.7,3303.6,0.0016]
[1720049436800,16.13883391,3303.7,3303.6,0.0016]
[1720049437134,16.19740272,3303.7,3303.6,0.0016]
[1720049437691,14.87623111,3303.7,3303.6,0.0016]
[1720049437924,13.82759856,3303.7,3303.6,0.0016]
[1720049438634,18.1733233,3303.7,3303.6,0.0016]
[1720049439800,18.17334122,3303.7,3303.6,0.0016]
[1720049442718,3.02721,3303.4,3302.9,1.124]
[1720049442919,1.90235665,3303.0,3302.7,3.02781]
[1720049443128,1.56716088,3302.9,3302.8,1.124]
[1720049443427,4.41196848,3302.9,3302.8,1.124]
[1720049443837,5.7333013,3302.9,3302.6,3.0279]
[1720049444034,1.90235696,3303.0,3302.5,5.39936]
[1720049444035,1.56716088,3302.8,3302.7,1.124]
[1720049444241,5.83967876,3302.8,3302.4,1.124]
[1720049444536,1.90235696,3302.6,3302.4,1.124]
[1720049444745,1.56716088,3302.5,3302.4,1.124]
[1720049445040,4.39630303,3302.5,3302.4,1.124]
[1720049445221,4.39631517,3302.5,3302.4,1.124]
[1720049445410,3.34751351,3302.5,3302.4,1.124]
[1720049446525,1.56716088,3302.5,3302.4,1.124]
[1720049456243,1.58348401,3302.5,3302.4,1.124]
[1720049456430,3.15064489,3302.5,3302.4,1.124]
[1720049459119,1.56716088,3302.5,3302.4,1.124]
[1720049459350,1.58326509,3302.5,3302.4,1.124]
[1720049459530,3.15042597,3302.5,3302.4,1.124]
[1720049459732,3.15038561,3302.5,3302.4,1.124]
[1720049461464,3.15047378,3302.5,3302.4,1.124]
[1720049462421,2.81747378,3302.5,3302.4,1.124]
[1720049462621,2.81750088,3302.5,3302.4,1.124]
[1720049464563,1.23416088,3302.5,3302.4,1.124]
[1720049464767,1.58342186,3302.5,3302.4,1.124]
[1720049465063,1.58342186,3302.5,3302.4,4.1521]
[1720049465241,1.58342186,3302.6,3302.4,5.10447]
[1720049465430,1.58342186,3302.6,3302.4,4.1521]
[1720049466060,1.58342186,3302.5,3302.4,4.1521]
[1720049467736,10.45746,3303.1,3302.4,4.1521]
[1720049467940,1.58370265,3302.5,3302.4,4.1521]
[1720049469371,2.63245482,3302.5,3302.4,4.1521]
[1720049469896,2.63245482,3302.5,3302.4,3.0281]
[1720049470077,2.63245482,3302.5,3302.4,4.1521]
[1720049471082,1.58389474,3302.5,3302.4,4.1521]
[1720049471279,1.58389474,3302.6,3302.5,3.028]
[1720049471481,1.9009122,3302.9,3302.6,3.02785]
[1720049471701,4.35729524,3302.8,3302.7,1.124]
[1720049471985,5.67867026,3302.8,3302.7,1.124]
[1720049472185,7.57958246,3302.8,3302.7,1.124]
[1720049472346,5.67867026,3302.8,3302.7,1.124]
[1720049472851,7.57959117,3302.8,3302.7,1.124]
[1720049473070,5.67867897,3302.8,3302.7,1.124]
[1720049473273,7.57959117,3302.8,3302.7,1.124]
[1720049473781,4.35731283,3302.8,3302.7,1.124]
[1720049474180,4.35732116,3302.8,3302.7,1.124]
[1720049474384,3.30863048,3302.8,3302.7,1.124]
[1720049474546,4.35731519,3302.8,3302.7,1.124]
[1720049475270,5.6786546,3302.8,3302.7,1.124]
[1720049475947,7.58042012,3302.8,3302.7,1.124]